lending/lending_fUSD_20240120
["ID","MTS","AMOUNT","RATE_DAILY","PERIOD"]
[312270441,1705728647156,-500.0,0.00024931,2]
[312270442,1705728647165,-500.0,0.00024931,2]
[312270443,1705728647175,-500.0,0.00024931,2]
[312270444,1705728647185,-500.0,0.00024931,2]
[312270445,1705728647194,-500.0,0.00024931,2]
[312270446,1705728647204,-500.0,0.00024931,2]
[312270447,1705728647214,-500.0,0.00024931,2]
[312270448,1705728647223,-500.0,0.00024931,2]
[312270449,1705728647232,-618.68801002,0.00024931,2]
[312270450,1705728647242,-441.96629012,0.00024931,2]
[312270451,1705728647251,-562.89786055,0.00024931,2]
[312270452,1705728647260,-500.0,0.00024931,2]
[312270453,1705728647270,-500.0,0.00024931,2]
[312270454,1705728647279,-500.0,0.00024931,2]
[312270455,1705728647287,-500.0,0.00024931,2]
[312270456,1705728647296,-500.0,0.00024931,2]
[312270457,1705728647306,-500.0,0.00024931,2]
[312270458,1705728647315,-500.0,0.00024931,2]
[312270459,1705728647324,-500.0,0.00024931,2]
[312270460,1705728647333,-500.0,0.00024931,2]
[312270461,1705728647343,-500.0,0.00024931,2]
[312270462,1705728647352,-500.0,0.00024931,2]
[312270463,1705728647361,-500.0,0.00024931,2]
[312270464,1705728647370,-500.0,0.00024931,2]
[312270465,1705728647378,-500.0,0.00024931,2]
[312270466,1705728647387,-586.06352948,0.00024931,2]
[312270467,1705728647397,-500.0,0.00024931,2]
[312270468,1705728647406,-445.90129969,0.00024931,2]
[312270469,1705728647415,-500.0,0.00024931,2]
[312270470,1705728647425,-500.0,0.00024931,2]
[312270471,1705728647434,-500.0,0.00024931,2]
[312270472,1705728647443,-500.0,0.00024931,2]
[312270473,1705728647454,-200.79977864,0.00024931,2]
[312270474,1705728647463,-500.0,0.00024931,2]
[312270475,1705728647473,-500.0,0.00024931,2]
[312270476,1705728647483,-500.0,0.00024931,2]
[312270477,1705728647492,-500.0,0.00024931,2]
[312270478,1705728647501,-500.0,0.00024931,2]
[312270479,1705728647512,-500.0,0.00024931,2]
[312270480,1705728647521,-500.0,0.00024931,2]
[312270481,1705728647530,-500.0,0.00024931,2]
[312270482,1705728647540,-500.0,0.00024931,2]
[312270483,1705728647549,-500.0,0.00024931,2]
[312270484,1705728647559,-500.0,0.00024931,2]
[312270485,1705728647569,-500.0,0.00024931,2]
[312270486,1705728647578,-500.0,0.00024931,2]
[312270487,1705728647588,-633.85817586,0.00024931,2]
[312270488,1705728647597,-500.0,0.00024931,2]
[312270489,1705728647607,-500.0,0.00024931,2]
[312270490,1705728647616,-500.0,0.00024931,2]
[312270491,1705728647625,-500.0,0.00024931,2]
[312270492,1705728647635,-500.0,0.00024931,2]
[312270493,1705728647644,-500.0,0.00024931,2]
[312270494,1705728647654,-500.0,0.00024931,2]
[312270495,1705728647663,-500.0,0.00024931,2]
[312270496,1705728647673,-500.0,0.00024931,2]
[312270497,1705728647682,-189.71588151,0.00024931,2]
[312270498,1705728647692,-500.0,0.00024931,2]
[312270499,1705728647702,-500.0,0.00024931,2]
[312270500,1705728647715,-500.0,0.00024931,2]
[312270501,1705728647724,-500.0,0.00024931,2]
[312270502,1705728647735,-500.0,0.00024931,2]
[312270503,1705728647745,-500.0,0.00024931,2]
[312270504,1705728647754,-500.0,0.00024931,2]
[312270505,1705728647763,-500.0,0.00024931,2]
[312270506,1705728647773,-593.01013736,0.00024931,2]
[312270507,1705728647782,-500.0,0.00024931,2]
[312270508,1705728647793,-500.0,0.00024931,2]
[312270509,1705728647803,-234.98490102,0.00024931,2]
[312270510,1705728647813,-500.0,0.00024931,2]
[312270511,1705728647823,-500.0,0.00024931,2]
[312270512,1705728647834,-483.52610909,0.00024931,2]
[312270513,1705728647849,-16.47389091,0.00024931,2]
[312270514,1705728647858,-500.0,0.00024931,2]
[312270515,1705728647867,-572.67829514,0.00024931,2]
[312270516,1705728647877,-500.0,0.00024931,2]
[312270517,1705728647886,-500.0,0.00024931,2]
[312270518,1705728647895,-500.0,0.00024931,2]
[312270519,1705728647905,-500.0,0.00024931,2]
[312270520,1705728647914,-500.0,0.00024931,2]
[312270521,1705728647923,-378.75013256,0.00024931,2]
[312270522,1705728647933,-500.0,0.00024931,2]
[312270523,1705728647942,-500.0,0.00024931,2]
[312270524,1705728647953,-244.11580874,0.00024931,2]
[312270525,1705728647962,-500.0,0.00024931,2]
[312270526,1705728647972,-500.0,0.00024931,2]
[312270527,1705728647981,-500.0,0.00024931,2]
[312270528,1705728647991,-150.0,0.00024931,2]
[312270529,1705728648001,-500.0,0.00024931,2]
[312270530,1705728648011,-500.0,0.00024931,2]
[312270531,1705728648020,-500.0,0.00024931,2]
[312270532,1705728648030,-500.0,0.00024931,2]
[312270533,1705728648039,-444.06192011,0.00024931,2]
[312270534,1705728648049,-500.0,0.00024931,2]
[312270535,1705728648062,-500.0,0.00024931,2]
[312270536,1705728648072,-500.0,0.00024931,2]
[312270537,1705728648086,-500.0,0.00024931,2]
[312270538,1705728648095,-500.0,0.00024931,2]
[312270539,1705728648105,-500.0,0.00024931,2]
[312270540,1705728648115,-500.0,0.00024931,2]
[312270541,1705728648125,-499.91512602,0.00024931,2]
[312270542,1705728648135,-500.0,0.00024931,2]
[312270543,1705728648145,-500.0,0.00024931,2]
[312270544,1705728648155,-500.0,0.00024931,2]
[312270545,1705728648164,-500.0,0.00024931,2]
[312270546,1705728648174,-500.0,0.00024931,2]
[312270547,1705728648183,-500.0,0.00024931,2]
[312270548,1705728648192,-513.04482212,0.00024931,2]
[312270549,1705728648205,-500.0,0.00024931,2]
[312270550,1705728648214,-500.0,0.00024931,2]
[312270551,1705728648223,-500.0,0.00024931,2]
[312270552,1705728648233,-500.0,0.00024931,2]
[312270553,1705728648242,-500.0,0.00024931,2]
[312270554,1705728648251,-520.89618532,0.00024931,2]
[312270555,1705728648261,-500.0,0.00024931,2]
[312270556,1705728648270,-500.0,0.00024931,2]
[312270557,1705728648279,-500.0,0.00024931,2]
[312270558,1705728648289,-189.16641363,0.00024931,2]
[312270559,1705728648302,-310.83358637,0.00024931,2]
[312270560,1705728648311,-500.0,0.00024931,2]
[312270561,1705728648319,-478.73522735,0.00024931,2]
[312270562,1705728648390,-21.26477265,0.00024931,2]
[312270563,1705728648400,-382.48483953,0.00024931,2]
[312270564,1705728648412,-117.51516047,0.00024931,2]
[312270565,1705728648421,-404.7603685,0.00024931,2]
[312270566,1705728648433,-95.2396315,0.00024931,2]
[312270567,1705728648442,-263.30775499,0.00024931,2]
[312270568,1705728648455,-236.69224501,0.00024931,2]
[312270569,1705728648464,-500.0,0.00024931,2]
[312270570,1705728648473,-500.0,0.00024931,2]
[312270571,1705728648482,-19.53192333,0.00024931,2]
[312270572,1705728648493,-480.46807667,0.00024931,2]
[312270573,1705728648502,-500.0,0.00024931,2]
[312270574,1705728648511,-195.84913725,0.00024931,2]
[312270575,1705728648523,-304.15086275,0.00024931,2]
[312270576,1705728648533,-813.3,0.00024931,2]
[312270577,1705728648542,-149.39388171,0.00024931,2]
[312270578,1705728648554,-437.99248675,0.00024931,2]
[312270579,1705728648562,-500.0,0.00024931,2]
[312270580,1705728648571,-500.0,0.00024931,2]
[312270581,1705728648580,-500.0,0.00024931,2]
[312270582,1705728648590,-259.70264755,0.00024931,2]
[312270583,1705728648599,-500.0,0.00024931,2]
[312270584,1705728648608,-500.0,0.00024931,2]
[312270585,1705728648618,-500.0,0.00024931,2]
[312270586,1705728648628,-500.0,0.00024931,2]
[312270587,1705728648637,-359.26846243,0.00024931,2]
[312270588,1705728648646,-500.0,0.00024931,2]
[312270589,1705728648655,-500.0,0.00024931,2]
[312270590,1705728648665,-500.0,0.00024931,2]
[312270591,1705728648675,-500.0,0.00024931,2]
[312270592,1705728648684,-500.0,0.00024931,2]
[312270593,1705728648693,-500.0,0.00024931,2]
[312270594,1705728648703,-1803.72,0.00024931,2]
[312270595,1705728648713,-500.0,0.00024931,2]
[312270596,1705728648722,-500.0,0.00024931,2]
[312270597,1705728648732,-500.0,0.00024931,2]
[312270598,1705728648741,-500.0,0.00024931,2]
[312270599,1705728648750,-500.0,0.00024931,2]
[312270600,1705728648761,-500.0,0.00024931,2]
[312270601,1705728648769,-500.0,0.00024931,2]
[312270602,1705728648780,-500.0,0.00024931,2]
[312270603,1705728648789,-500.0,0.00024931,2]
[312270604,1705728648799,-500.0,0.00024931,2]
[312270605,1705728648808,-558.12,0.00024931,2]
[312270606,1705728648819,-500.0,0.00024931,2]
[312270607,1705728648827,-1776.72,0.00024931,2]
[312270608,1705728648836,-500.0,0.00024931,2]
[312270609,1705728648846,-500.0,0.00024931,2]
[312270610,1705728648855,-500.0,0.00024931,2]
[312270611,1705728648866,-1408.12,0.00024931,2]
[312270612,1705728648875,-500.0,0.00024931,2]
[312270613,1705728648884,-500.0,0.00024931,2]
[312270614,1705728648893,-546.82565009,0.00024931,2]
[312270615,1705728648903,-179.51704904,0.00024931,2]
[312270616,1705728649002,-1474.30007752,0.00024931,2]
[312270617,1705728649013,-226.20287344,0.00024931,2]
[312270618,1705728649023,-500.0,0.00024931,2]
[312270619,1705728649032,-859.86,0.00024931,2]
[312270620,1705728649042,-466.37613439,0.00024931,2]
[312270621,1705728649079,-33.62386561,0.00024931,2]
[312270622,1705728649089,-500.0,0.00024931,2]
[312270623,1705728649098,-500.0,0.00024931,2]
[312270624,1705728649107,-500.0,0.00024931,2]
[312270625,1705728649116,-500.0,0.00024931,2]
[312270626,1705728649127,-500.0,0.00024931,2]
[312270627,1705728649136,-500.0,0.00024931,2]
[312270628,1705728649147,-5163.69490132,0.00024931,2]
[312270629,1705728649159,-93.54509868,0.00024931,2]
[312270630,1705728649167,-500.0,0.00024931,2]
[312270631,1705728649177,-849.44922932,0.00024931,2]
[312270632,1705728649189,-512.70077068,0.00024931,2]
[312270633,1705728649199,-6.20493646,0.00024931,2]
[312270634,1705728649212,-147.22124364,0.00024931,2]
[312270635,1705728649221,-500.0,0.00024931,2]
[312270636,1705728649230,-417.9591721,0.00024931,2]
[312270637,1705728649243,-511.1508279,0.00024931,2]
[312270638,1705728649253,-500.0,0.00024931,2]
[312270639,1705728649262,-248.80625728,0.00024931,2]
[312270640,1705728649276,-251.19374272,0.00024931,2]
[312270641,1705728649289,-541.41,0.00024931,2]
[312270642,1705728649298,-703.38,0.00024931,2]
[312270643,1705728649308,-500.0,0.00024931,2]
[312270644,1705728649318,-500.0,0.00024931,2]
[312270645,1705728649327,-500.0,0.00024931,2]
[312270646,1705728649338,-500.0,0.00024931,2]
[312270647,1705728649348,-653.39944122,0.00024931,2]
[312270648,1705728818522,225.0,0.00020575,2]
[312270649,1705729052853,520.11,0.00021473,2]
[312270650,1705729160513,50.72507695,0.00023263,2]
[312270651,1705729160536,1443.0,0.00023263,2]
[312270666,1705729832123,-494.1,0.00020576,2]
[312270668,1705729832133,-150.0,0.00022233,2]
[312270669,1705729832142,-200.0,0.00022245,2]
[312270670,1705729832151,-1588.38611601,0.00022257,2]
[312270671,1705729832179,-508.47962113,0.00022257,2]
[312270672,1705729832190,-386.50908337,0.00022257,2]
[312270673,1705729832256,-409.96149532,0.00022257,2]
[312270674,1705729832361,-399.90157605,0.00022257,2]
[312270675,1705729832423,-492.42210812,0.00022257,2]
[312270676,1705729832432,-1852.42,0.00022264,2]
[312270677,1705729832444,-382.5536188,0.00022267,7]
[312270678,1705729832456,-2000.0,0.00022279,2]
[312270679,1705729832465,-193.15,0.00022288,2]
[312270680,1705729832475,-207.41,0.00022313,2]
[312270681,1705729832485,-334.79,0.00022332,2]
[312270682,1705729832495,-3043.97,0.00022351,2]
[312270683,1705729832505,-500.0,0.00022363,2]
[312270684,1705729832514,-2705.0,0.00022382,2]
[312270685,1705729832524,-190.4,0.00022403,2]
[312270686,1705729832536,-1902.79,0.00022418,2]
[312270687,1705729832546,-150.0,0.00022421,2]
[312270689,1705729832557,-1187.67,0.00022422,2]
[312270691,1705729832566,-767.01,0.0002252,2]
[312270693,1705729832575,-162.04506462,0.00022537,2]
[312270695,1705729832585,-278.73030459,0.00022629,2]
[312270697,1705729832594,-308.71374938,0.00022631,2]
[312270723,1705729832733,-2454.42043983,0.00022631,2]
[312270728,1705729832745,-804.42570392,0.00022631,2]
[312270731,1705729832756,-2444.25329828,0.00022631,2]
[312270736,1705729832772,-616.35924009,0.00022631,2]
[312270792,1705729838200,-280.0,0.00022631,2]
[312270815,1705729841286,-1748.42311518,0.00022631,2]
[312270816,1705729841396,-1231.56859817,0.00022631,2]
[312270817,1705729841566,-2501.94,0.00022631,2]
[312270824,1705729843146,-411.7493109,0.00022631,2]
[312270829,1705729843306,-406.1815225,0.00022631,2]
[312270830,1705729843360,-10681.96502175,0.00022631,2]
[312270831,1705729843370,-2024.89,0.00022637,2]
[312270832,1705729843379,-281.26,0.00022676,2]
[312270833,1705729843389,-800.0,0.00022699,2]
[312270834,1705729843398,-150.0,0.00022712,2]
[312270835,1705729843407,-277.02,0.00022729,2]
[312270836,1705729843416,-227.62,0.00022754,2]
[312270837,1705729843425,-200.0,0.00022818,2]
[312270838,1705729843435,-151.8,0.00022829,2]
[312270839,1705729843446,-494.1,0.0002284,2]
[312270840,1705729843457,-206.0,0.00022934,2]
[312270841,1705729843466,-366.02450706,0.00023,2]
[312270842,1705729843476,-153.41,0.00023109,2]
[312270843,1705729843485,-155.50017795,0.00023439,2]
[312270844,1705729843495,-1853.65317375,0.00023439,2]
[312270845,1705729843506,-4000.0,0.0002344,2]
[312270846,1705729843517,-474.4,0.00023548,2]
[312270847,1705729843527,-162.04506462,0.00023659,2]
[312270849,1705729843537,-200.0,0.00023745,2]
[312270851,1705729843546,-166.83,0.0002378,2]
[312270853,1705729843555,-281.26,0.0002381,2]
[312270855,1705729843564,-3969.49119647,0.00024,2]
[312270857,1705729843575,-153.41,0.00024034,2]
[312270859,1705729843585,-1187.67,0.00024066,2]
[312270861,1705729843594,-162.08,0.00024157,2]
[312270863,1705729843604,-2322.41767465,0.00024181,2]
[312270865,1705729843615,-161.79,0.00024244,2]
[312270866,1705729843624,-171.23,0.000244,2]
[312270867,1705729843633,-162.08,0.00024479,2]
[312270868,1705729843643,-1000.0,0.00024557,2]
[312270869,1705729843652,-5335.634,0.00024557,2]
[312270870,1705729843661,-2388.41152426,0.00024557,2]
[312270871,1705729843674,-2611.58847574,0.00024557,2]
[312270872,1705729843684,-1000.0,0.00024625,3]
[312270873,1705729843694,-218.97430986,0.00024625,3]
[312270874,1705729843703,-1000.0,0.00024625,3]
[312270875,1705729843713,-1000.0,0.00024625,3]
[312270876,1705729843722,-500.0,0.00024657,2]
[312270877,1705729843731,-573.73495394,0.00024657,2]
[312270878,1705729843743,-559.94895382,0.00024657,2]
[312270879,1705729843753,-92.26042437,0.00024657,2]
[312270880,1705729843764,-407.73957563,0.00024657,2]
[312270881,1705729843773,-206.55217416,0.00024657,2]
[312270882,1705729843785,-293.44782584,0.00024657,2]
[312270883,1705729843794,-500.0,0.00024657,2]
[312270884,1705729843803,-500.0,0.00024657,2]
[312270885,1705729843813,-500.0,0.00024657,2]
[312270886,1705729843823,-500.0,0.00024657,2]
[312270887,1705729843833,-503.4304059,0.00024657,2]
[312270888,1705729843842,-500.0,0.00024657,2]
[312270889,1705729843851,-441.4904811,0.00024657,2]
[312270890,1705729843863,-58.5095189,0.00024657,2]
[312270891,1705729843872,-500.0,0.00024657,2]
[312270892,1705729843881,-435.98797218,0.00024657,2]
[312270893,1705729843891,-500.0,0.00024657,2]
[312270894,1705729843901,-473.62179591,0.00024657,2]
[312270895,1705729843910,-500.0,0.00024657,2]
[312270896,1705729843920,-500.0,0.00024657,2]
[312270897,1705729843929,-500.0,0.00024657,2]
[312270898,1705729843939,-500.0,0.00024657,2]
[312270899,1705729843949,-500.0,0.00024657,2]
[312270900,1705729843959,-500.0,0.00024657,2]
[312270901,1705729843969,-490.08684326,0.00024657,2]
[312270903,1705729846178,-9.91315674,0.00024657,2]
[312270904,1705729846187,-236.97940714,0.00024657,2]
[312270905,1705729846197,-500.0,0.00024657,2]
[312270906,1705729846206,-509.2,0.00024657,2]
[312270907,1705729846214,-542.77293315,0.00024657,2]
[312270908,1705729846225,-500.0,0.00024657,2]
[312270909,1705729846234,-617.20432909,0.00024657,2]
[312270910,1705729846244,-500.0,0.00024657,2]
[312270911,1705729846254,-46.17278551,0.00024657,2]
[312270912,1705729846266,-308.95265547,0.00024657,2]
[312270913,1705729846276,-500.0,0.00024657,2]
[312270914,1705729846285,-91.19781316,0.00024657,2]
[312270915,1705729846298,-408.80218684,0.00024657,2]
[312270916,1705729846311,-500.0,0.00024657,2]
[312270917,1705729846321,-500.0,0.00024657,2]
[312270918,1705729846332,-25.22554531,0.00024657,2]
[312270919,1705729846343,-276.90558802,0.00024657,2]
[312270920,1705729846359,-197.86886667,0.00024657,2]
[312270921,1705729846368,-213.19380628,0.00024657,2]
[312270922,1705729846384,-286.80619372,0.00024657,2]
[312270923,1705729846393,-365.64515651,0.00024657,2]
[312270924,1705729846402,-468.98364324,0.00024657,2]
[312270925,1705729846411,-500.0,0.00024657,2]
[312270926,1705729846420,-500.0,0.00024657,2]
[312270927,1705729846429,-283.92618535,0.00024657,2]
[312270928,1705729846446,-216.07381465,0.00024657,2]
[312270929,1705729846457,-500.0,0.00024657,2]
[312270930,1705729846466,-587.70582737,0.00024657,2]
[312270931,1705729846475,-500.0,0.00024657,2]
[312270932,1705729846485,-500.0,0.00024657,2]
[312270933,1705729846494,-500.0,0.00024657,2]
[312270934,1705729846503,-500.0,0.00024657,2]
[312270935,1705729846512,-500.0,0.00024657,2]
[312270936,1705729846521,-500.0,0.00024657,2]
[312270937,1705729846530,-500.0,0.00024657,2]
[312270938,1705729846541,-500.0,0.00024657,2]
[312270939,1705729846551,-500.0,0.00024657,2]
[312270940,1705729846562,-518.06669164,0.00024657,2]
[312270941,1705729846571,-150.0,0.00024657,2]
[312270942,1705729846582,-59.54035884,0.00024657,2]
[312270943,1705729846595,-440.45964116,0.00024657,2]
[312270944,1705729846605,-500.0,0.00024657,2]
[312270945,1705729846614,-500.0,0.00024657,2]
[312270946,1705729846623,-500.0,0.00024657,2]
[312270948,1705729846632,-500.0,0.00024657,2]
[312270949,1705729846642,-500.0,0.00024657,2]
[312270950,1705729846652,-500.0,0.00024657,2]
[312270951,1705729846662,-509.89192383,0.00024657,2]
[312270952,1705729846671,-500.0,0.00024657,2]
[312270953,1705729846680,-500.0,0.00024657,2]
[312270954,1705729846690,-500.0,0.00024657,2]
[312270955,1705729846699,-242.15886136,0.00024657,2]
[312270956,1705729846709,-500.0,0.00024657,2]
[312270957,1705729846718,-500.0,0.00024657,2]
[312270958,1705729846728,-500.0,0.00024657,2]
[312270959,1705729846738,-500.0,0.00024657,2]
[312270960,1705729846747,-419.79394006,0.00024657,2]
[312270961,1705729846756,-318.1257706,0.00024657,2]
[312270962,1705729846765,-500.0,0.00024657,2]
[312270963,1705729846774,-500.0,0.00024657,2]
[312270964,1705729846784,-500.0,0.00024657,2]
[312270965,1705729846794,-500.0,0.00024657,2]
[312270966,1705729846803,-500.0,0.00024657,2]
[312270967,1705729846813,-500.0,0.00024657,2]
[312270968,1705729846823,-500.0,0.00024657,2]
[312270969,1705729846833,-500.0,0.00024657,2]
[312270970,1705729846842,-509.60522647,0.00024657,2]
[312270971,1705729846851,-500.0,0.00024657,2]
[312270972,1705729846860,-500.0,0.00024657,2]
[312270973,1705729846870,-500.0,0.00024657,2]
[312270974,1705729846879,-500.0,0.00024657,2]
[312270975,1705729846889,-500.0,0.00024657,2]
[312270976,1705729846899,-500.0,0.00024657,2]
[312270977,1705729846908,-508.5260557,0.00024657,2]
[312270978,1705729846918,-500.0,0.00024657,2]
[312270979,1705729846927,-500.0,0.00024657,2]
[312270980,1705729846936,-500.0,0.00024657,2]
[312270981,1705729846946,-522.40371043,0.00024657,2]
[312270982,1705729846955,-500.0,0.00024657,2]
[312270983,1705729846964,-500.0,0.00024657,2]
[312270984,1705729846974,-500.0,0.00024657,2]
[312270985,1705729846983,-525.87406796,0.00024657,2]
[312270986,1705729846992,-500.0,0.00024657,2]
[312270987,1705729847001,-556.94646837,0.00024657,2]
[312270988,1705729847011,-500.0,0.00024657,2]
[312270989,1705729847021,-163.80512231,0.00024657,2]
[312270990,1705729847031,-270.73804077,0.00024657,2]
[312270991,1705729847042,-500.0,0.00024657,2]
[312270992,1705729847051,-500.0,0.00024657,2]
[312270993,1705729847061,-500.0,0.00024657,2]
[312270994,1705729847070,-500.0,0.00024657,2]
[312270995,1705729847079,-500.0,0.00024657,2]
[312270996,1705729847088,-500.0,0.00024657,2]
[312270997,1705729847098,-500.0,0.00024657,2]
[312270998,1705729847107,-500.0,0.00024657,2]
[312270999,1705729847119,-745.53,0.00024657,2]
[312271000,1705729847128,-500.0,0.00024657,2]
[312271001,1705729847138,-500.0,0.00024657,2]
[312271002,1705729847149,-191.05002508,0.00024657,2]
[312271003,1705729847163,-308.94997492,0.00024657,2]
[312271004,1705729847172,-500.0,0.00024657,2]
[312271005,1705729847182,-295.17491663,0.00024657,2]
[312271006,1705729847191,-500.0,0.00024657,2]
[312271007,1705729847201,-500.0,0.00024657,2]
[312271008,1705729847210,-500.0,0.00024657,2]
[312271009,1705729847223,-598.78023948,0.00024657,2]
[312271010,1705729847232,-500.0,0.00024657,2]
[312271011,1705729847241,-500.0,0.00024657,2]
[312271012,1705729847252,-500.0,0.00024657,2]
[312271013,1705729847261,-500.0,0.00024657,2]
[312271014,1705729847270,-500.0,0.00024657,2]
[312271015,1705729847280,-500.0,0.00024657,2]
[312271016,1705729847289,-500.0,0.00024657,2]
[312271017,1705729847298,-500.0,0.00024657,2]
[312271018,1705729847307,-500.0,0.00024657,2]
[312271019,1705729847317,-322.1703434,0.00024657,2]
[312271020,1705729847326,-394.72111297,0.00024657,2]
[312271021,1705729847335,-500.0,0.00024657,2]
[312271022,1705729847346,-500.0,0.00024657,2]
[312271023,1705729847356,-500.0,0.00024657,2]
[312271024,1705729847365,-329.39416366,0.00024657,2]
[312271025,1705729847374,-283.67271498,0.00024657,2]
[312271026,1705729847383,-500.0,0.00024657,2]
[312271027,1705729847393,-500.0,0.00024657,2]
[312271028,1705729847402,-500.0,0.00024657,2]
[312271029,1705729847412,-500.0,0.00024657,2]
[312271030,1705729847423,-211.05485576,0.00024657,2]
[312271031,1705729847432,-500.0,0.00024657,2]
[312271032,1705729847444,-500.0,0.00024657,2]
[312271033,1705729847457,-183.02155083,0.00024657,2]
[312271034,1705729847467,-500.0,0.00024657,2]
[312271035,1705729847477,-500.0,0.00024657,2]
[312271036,1705729847486,-500.0,0.00024657,2]
[312271037,1705729847495,-500.0,0.00024657,2]
[312271038,1705729847504,-500.0,0.00024657,2]
[312271039,1705729847514,-500.0,0.00024657,2]
[312271040,1705729847523,-500.0,0.00024657,2]
[312271041,1705729847533,-500.0,0.00024657,2]
[312271042,1705729847543,-500.0,0.00024657,2]
[312271043,1705729847552,-500.0,0.00024657,2]
[312271044,1705729847562,-500.0,0.00024657,2]
[312271045,1705729847573,-500.0,0.00024657,2]
[312271046,1705729847583,-500.0,0.00024657,2]
[312271047,1705729847594,-500.0,0.00024657,2]
[312271048,1705729847604,-393.50007337,0.00024657,2]
[312271049,1705729847614,-500.0,0.00024657,2]
[312271050,1705729847623,-500.0,0.00024657,2]
[312271051,1705729847632,-500.0,0.00024657,2]
[312271052,1705729847642,-500.0,0.00024657,2]
[312271053,1705729847652,-500.0,0.00024657,2]
[312271054,1705729847661,-500.0,0.00024657,2]
[312271055,1705729847673,-500.0,0.00024657,2]
[312271056,1705729847683,-500.0,0.00024657,2]
[312271057,1705729847692,-500.0,0.00024657,2]
[312271058,1705729847703,-500.0,0.00024657,2]
[312271059,1705729847713,-500.0,0.00024657,2]
[312271060,1705729847724,-500.0,0.00024657,2]
[312271061,1705729847733,-500.0,0.00024657,2]
[312271062,1705729847742,-500.0,0.00024657,2]
[312271063,1705729847751,-130.50660959,0.00024657,2]
[312271064,1705729847765,-369.49339041,0.00024657,2]
[312271065,1705729847774,-500.0,0.00024657,2]
[312271066,1705729847783,-500.0,0.00024657,2]
[312271067,1705729847793,-588.6090286,0.00024657,2]
[312271068,1705729847802,-1.78908761,0.00024657,2]
[312271069,1705729847813,-498.21091239,0.00024657,2]
[312271070,1705729847822,-500.0,0.00024657,2]
[312271071,1705729847832,-500.0,0.00024657,2]
[312271072,1705729847843,-521.43845961,0.00024657,2]
[312271073,1705729847853,-697.17,0.00024657,2]
[312271074,1705729847862,-500.0,0.00024657,2]
[312271075,1705729847871,-500.0,0.00024657,2]
[312271076,1705729847880,-500.0,0.00024657,2]
[312271077,1705729847889,-500.0,0.00024657,2]
[312271078,1705729847898,-500.0,0.00024657,2]
[312271079,1705729847907,-500.0,0.00024657,2]
[312271080,1705729847916,-500.0,0.00024657,2]
[312271081,1705729847926,-500.0,0.00024657,2]
[312271082,1705729847936,-500.0,0.00024657,2]
[312271083,1705729847946,-500.0,0.00024657,2]
[312271084,1705729847955,-252.02843962,0.00024657,2]
[312271085,1705729847966,-500.0,0.00024657,2]
[312271086,1705729847975,-500.0,0.00024657,2]
[312271087,1705729847985,-500.0,0.00024657,2]
[312271088,1705729847994,-500.0,0.00024657,2]
[312271089,1705729848003,-500.0,0.00024657,2]
[312271090,1705729848012,-246.56978857,0.00024657,2]
[312271091,1705729848023,-500.0,0.00024657,2]
[312271092,1705729848033,-579.78370765,0.00024657,2]
[312271093,1705729848042,-500.0,0.00024657,2]